[Event "10th Norway Chess Blitz 2022"]
[Site "Stavanger"]
[Date "2022.05.30"]
[Round "8.1"]
[White "Carlsen, Magnus"]
[Black "Topalov, Veselin"]
[Result "1-0"]
[ECO "A46"]
[WhiteElo "2864"]
[BlackElo "2730"]
[Annotator "TA"]
[PlyCount "59"]
[EventDate "2022.05.30"]
[EventType "tourn"]
[EventCountry "NOR"]
[SourceTitle "playchess.com"]
[Source "ChessBase"]
[SourceQuality "1"]
[TimeControl "180+2"]

{[%evp 12,59,8,1,0,0,20,28,29,4,6,12,14,0,0,0,0,0,0,0,-11,-12,-12,-12,7,8,24,0,18,0,94,25,139,135,139,142,133,122,200,202,187,183,243,185,252,239,393,386,478,436]} 1. d4 {[%emt 0:00:02]} Nf6 {[%emt 0:00:02]} 2. Bg5 {[%emt 0:00:02]} e6 {[%emt 0:00:03]} 3. Nd2 {[%emt 0:00:04]} h6 {[%emt 0:00:02]} 4. Bh4 {[%emt 0:00:02]} c5 {[%emt 0:00:01]} 5. e3 {[%emt 0:00:03]} Be7 {[%emt 0:00:13]} 6. Ngf3 {[%emt 0:00:07]} b6 {[%emt 0:00:02]} 7. c3 {[%emt 0:00:13]} O-O {[%emt 0:00:04] A46: 1 d4 Nf6 2 Nf3 e6: Torre, London and Colle Systems.} 8. Bd3 {[%emt 0:00:17]} Ba6 {[%emt 0:00:03]} 9. Bxa6 {[%emt 0:00:03]} Nxa6 {[%emt 0:00:01] White has an edge.} 10. Bxf6 {[%emt 0:00:02]} Bxf6 {[%emt 0:00:02] [#]} 11. h4 $146 {[%emt 0:00:06]} ({Predecessor:} 11. O-O d5 12. Qe2 Nb8 13. Rac1 Nc6 14. Rfd1 Rc8 15. Qb5 Qe7 16. g3 Rfd8 17. Kg2 {0-1 (82) Mrkonjic,N (2289)-Virostko,P (2323) Zvolen 2000}) 11... g6 {[%emt 0:00:06]} 12. Ne4 {[%emt 0:00:24]} Bg7 {[%emt 0:00:21]} 13. d5 {[%emt 0:00:31]} exd5 {[%emt 0:00:17]} 14. Qxd5 {[%emt 0:00:04]} Nc7 {[%emt 0:00:01]} 15. Qd6 {[%emt 0:00:07]} Re8 {[%emt 0:00:28]} 16. Ng3 {[%emt 0:00:02]} Re6 {[%emt 0:00:08]} 17. Qd3 {[%emt 0:00:03]} d5 {[%emt 0:00:07]} 18. h5 {[%emt 0:00:03]} Qf6 {[%emt 0:00:11]} 19. O-O {[%emt 0:00:04]} Rae8 {[%emt 0:00:05]} 20. a4 {[%emt 0:00:03]} g5 {[%emt 0:00:04]} (20... Bf8 $11) 21. Rfd1 {[%emt 0:00:08]} ({White should play} 21. Nh2 $16) 21... Bf8 {[%emt 0:00:09] [#]} (21... Qe7 $11 {keeps the balance.}) 22. Nh2 $1 $16 {[%emt 0:00:09]} Rc6 {[%emt 0:00:14]} 23. Ng4 {[%emt 0:00:04]} Qe6 {[%emt 0:00:01]} 24. Nf5 {[%emt 0:00:03] White is more active.} Qe4 {[%emt 0:00:31]} (24... Bg7 $16) 25. Qxe4 $18 {[%emt 0:00:03]} Rxe4 {[%emt 0:00:01]} 26. f3 {[%emt 0:00:03]} Re8 {[%emt 0:00:02]} (26... Ree6 {keeps fighting.} 27. Rd2 a6) 27. Kf2 {[%emt 0:00:07]} Kh7 {[%emt 0:00:01]} (27... c4 {was necessary.} 28. f4 Bg7) 28. e4 {[%emt 0:00:08]} dxe4 {[%emt 0:00:05]} (28... Rd8 29. Rac1 c4) 29. Rd7 {[%emt 0:00:02]} exf3 {[%emt 0:00:14] [#]} 30. Rxc7 $1 {[%emt 0:00:05][%mdl 512] Weighted Error Value: White=0.09 (flawless) /Black=0.43} 1-0

[Event "10th Norway Chess Blitz 2022"]
[Site "Stavanger"]
[Date "2022.05.30"]
[Round "8.2"]
[White "Radjabov, Teimour"]
[Black "So, Wesley"]
[Result "0-1"]
[ECO "D27"]
[WhiteElo "2753"]
[BlackElo "2766"]
[Annotator "TA"]
[PlyCount "54"]
[EventDate "2022.05.30"]
[EventType "tourn"]
[EventCountry "NOR"]
[SourceTitle "playchess.com"]
[Source "ChessBase"]
[SourceQuality "1"]
[TimeControl "180+2"]

{[%evp 16,54,25,26,24,27,39,22,20,29,25,24,28,-209,-198,-219,-226,-254,-256,-312,-303,-346,-308,-375,-378,-440,-457,-453,-453,-645,-627,-633,-445,-470,-475,-488,-489,-480,-483,-1227,-468]} 1. Nf3 {[%emt 0:00:01]} d5 {[%emt 0:00:01]} 2. d4 {[%emt 0:00:01]} Nf6 {[%emt 0:00:01]} 3. c4 {[%emt 0:00:01]} dxc4 {[%emt 0:00:01]} 4. e3 {[%emt 0:00:01]} e6 {[%emt 0:00:01]} 5. Bxc4 {[%emt 0:00:01]} a6 {[%emt 0:00:01]} 6. b3 {[%emt 0:00:01]} c5 {[%emt 0:00:02]} 7. Bb2 {[%emt 0:00:02]} cxd4 {[%emt 0:00:05]} 8. Nxd4 {[%emt 0:00:01]} Be7 {[%emt 0:00:06]} 9. O-O {[%emt 0:00:03]} O-O {[%emt 0:00:02] [#] D27: Queen's Gambit Accepted: Classical main line: 7 e4!? and 7 a4.} 10. Be2 $146 {[%emt 0:00:09]} ({Predecessor:} 10. Nd2 Bd7 11. N2f3 Nc6 12. Qe2 b5 13. Bd3 Rc8 14. Rac1 Qb6 15. Rfd1 Rfd8 16. e4 Be8 17. Nxc6 Bxc6 {½-½ (59) Schneider,L (1480)-Sefeloge,M (1763) Wiesbaden 2018}) 10... b5 {[%emt 0:00:01]} 11. Nd2 {[%emt 0:00:03]} Bb7 {[%emt 0:00:01] The position is equal.} 12. Rc1 {[%emt 0:00:01]} Qd7 {[%emt 0:00:01]} 13. N2f3 {[%emt 0:00:07]} Bd6 {[%emt 0:00:01] Inhibits Ne5.} 14. Qc2 $2 {[%emt 0:00:12] [#]} (14. a4 $11 {and White is okay.}) 14... e5 $1 $19 {[%emt 0:00:29]} 15. Nf5 {[%emt 0:00:09]} Be4 {[%emt 0:00:01]} 16. Nh6+ {[%emt 0:01:08]} gxh6 {[%emt 0:00:01]} 17. Qd1 {[%emt 0:00:01]} Nc6 {[%emt 0:00:06]} 18. Nd2 {[%emt 0:00:03]} Bf5 {[%emt 0:00:49]} 19. f4 {[%emt 0:00:01]} Rad8 {[%emt 0:00:01] aiming for ...Bb4.} 20. Qe1 {[%emt 0:00:05]} Bb4 {[%emt 0:00:09] Black is clearly winning.} 21. Qg3+ {[%emt 0:00:05]} Bg6 {[%emt 0:00:00]} 22. Nf3 {[%emt 0:00:06]} (22. Nb1 $142 Ne4 23. Qf3) 22... Ne4 {[%emt 0:00:15]} 23. Qh4 {[%emt 0:00:01]} h5 {[%emt 0:00:01][%cal Od7a7] [#] Threatens to win with ...Qa7!} 24. Kh1 {[%emt 0:00:12]} Be7 {[%emt 0:00:04]} 25. Qe1 {[%emt 0:00:05]} exf4 {[%emt 0:00:02]} 26. exf4 {[%emt 0:00:02]} Rfe8 {[%emt 0:00:09]} 27. Nh4 {[%emt 0:00:19]} (27. a3 $142) 27... Qd2 {[%emt 0:00:12] White did not feel at home in the position after the opening.  Weighted Error Value: White=0.73/Black=0.12 (very precise)} (27... Bb4 $142 28. Rd1 Bxe1 29. Rxd7 Rxd7 30. Rxe1 Nf2+ 31. Kg1 Nd3) 0-1

[Event "10th Norway Chess Blitz 2022"]
[Site "Stavanger"]
[Date "2022.05.30"]
[Round "8.3"]
[White "Giri, Anish"]
[Black "Tari, Aryan"]
[Result "1/2-1/2"]
[ECO "A04"]
[WhiteElo "2761"]
[BlackElo "2654"]
[Annotator "TA"]
[PlyCount "73"]
[EventDate "2022.05.30"]
[EventType "tourn"]
[EventCountry "NOR"]
[SourceTitle "playchess.com"]
[Source "ChessBase"]
[SourceQuality "1"]
[TimeControl "180+2"]

{[%evp 9,73,14,12,1,5,0,0,-7,0,-4,0,7,3,-37,-34,-38,-28,-18,-16,-97,-70,-69,-64,-59,-72,-72,-20,-73,-46,-79,-79,-77,-76,-66,-82,-78,-70,-70,-78,-102,-98,-104,-98,-108,-96,-118,-11,-11,-11,-10,27,6,12,14,61,0,88,25,17,22,12,14,26,27,17,4]} 1. Nf3 {[%emt 0:00:01]} Nf6 {[%emt 0:00:06]} 2. g3 {[%emt 0:00:01]} c5 {[%emt 0:00:04]} 3. Bg2 {[%emt 0:00:02]} Nc6 {[%emt 0:00:01]} 4. O-O {[%emt 0:00:03]} e5 {[%emt 0:00:08]} 5. e4 {[%emt 0:00:01]} d6 {[%emt 0:00:03]} 6. d3 {[%emt 0:00:06] A04: Unusual lines after 1 Nf3 and King's Indian Attack.} g6 {[%emt 0:00:02]} 7. Nc3 {[%emt 0:00:01]} Bg7 {[%emt 0:00:01]} 8. a3 {[%emt 0:00:02]} O-O {[%emt 0:00:03]} 9. Rb1 h6 {[%emt 0:00:19]} 10. b4 {[%emt 0:00:01]} b6 {[%emt 0:00:02] [#]} 11. h3 $146 {[%emt 0:00:07]} ({Predecessor:} 11. Ne2 Be6 12. c4 a5 13. bxc5 bxc5 14. Nc3 Nd4 15. Nxd4 cxd4 16. Nd5 Bxd5 17. cxd5 {0-1 (31) Maltsevskaya,A (2318)-Saduakassova,D (2505) Moscow 2019}) 11... Be6 {[%emt 0:00:05]} 12. Be3 {[%emt 0:00:06]} Nd4 {[%emt 0:00:04]} 13. bxc5 {[%emt 0:00:07]} bxc5 {[%emt 0:00:02]} 14. Nb5 {[%emt 0:00:11]} (14. Nd2 $11 {keeps the balance.}) 14... Nxb5 {[%emt 0:00:20]} 15. Rxb5 {[%emt 0:00:01]} Qd7 {[%emt 0:00:00][%csl LRb5,LRh3]} 16. Qb1 {[%emt 0:00:12]} Bxh3 {[%emt 0:00:02]} 17. Rb7 {[%emt 0:00:01] [#]} Qe6 {[%emt 0:00:11]} ({Black should play} 17... Qc8 $1 $17) 18. Qb3 {[%emt 0:00:03]} (18. Qb5 $11 {remains equal.}) 18... c4 {[%emt 0:00:04]} 19. Qxc4 {[%emt 0:00:05]} Qxc4 {[%emt 0:00:03]} 20. dxc4 {[%emt 0:00:01] [#]} Bxg2 {[%emt 0:00:02]} 21. Kxg2 {[%emt 0:00:01]} Nxe4 {[%emt 0:00:04]} 22. Rd1 {[%emt 0:00:41]} Rfc8 {[%emt 0:00:02]} 23. Nd2 {[%emt 0:00:01]} Nc3 {[%emt 0:00:36]} 24. Rh1 {[%emt 0:00:10]} h5 {[%emt 0:00:09]} 25. Rb3 {[%emt 0:00:23]} e4 {[%emt 0:00:10]} 26. Rb7 {[%emt 0:00:15] Against Rc7} d5 {[%emt 0:00:03]} 27. Bxa7 {[%emt 0:00:13]} d4 {[%emt 0:00:08]} ({Black should try} 27... Bh6 $17 28. Nb1 Nxb1 29. Rhxb1 Rxc4 30. Rb8+ Rxb8 31. Rxb8+ Kg7) 28. Re1 $11 {[%emt 0:00:04]} Re8 {[%emt 0:00:05]} 29. Rd7 {[%emt 0:00:04]} Re6 {[%emt 0:00:25][%cal Oe4e3]} 30. Bxd4 {[%emt 0:00:18]} Bxd4 {[%emt 0:00:01]} 31. Rxd4 {[%emt 0:00:01]} Rxa3 {[%emt 0:00:02]} (31... f5 $11 {was preferrable.}) 32. c5 {[%emt 0:00:05]} ({Much weaker is} 32. Nxe4 $6 Nxe4 33. Rexe4 (33. Rdxe4 Rxe4 34. Rxe4 Rc3 $11) 33... Rxe4 34. Rxe4 Rc3 $11) (32. Rd8+ $14 Kh7 33. Rd7) 32... Rc6 {[%emt 0:00:17]} (32... Ra4 $11 33. Rxa4 Nxa4) 33. Rc4 {[%emt 0:00:06]} (33. Re3 $16 {Strongly threatening Nc4.} Kg7 34. Rd7 (34. Nxe4 Nb5 $16)) 33... f5 {[%emt 0:00:07]} 34. Nb3 {[%emt 0:00:01]} Nb5 {[%emt 0:00:05]} 35. Rd1 {[%emt 0:00:03] aiming for Rb4.} Ra7 $1 {[%emt 0:00:01]} 36. Rb4 {[%emt 0:00:01]} Nc3 {[%emt 0:00:05]} 37. Rd6 {[%emt 0:00:11] Weighted Error Value: White=0.19 (very precise) /Black=0.19 (very precise)} 1/2-1/2

[Event "10th Norway Chess Blitz 2022"]
[Site "Stavanger"]
[Date "2022.05.30"]
[Round "8.4"]
[White "Wang, Hao"]
[Black "Vachier-Lagrave, Maxime"]
[Result "0-1"]
[ECO "D97"]
[WhiteElo "2744"]
[BlackElo "2750"]
[Annotator "TA"]
[PlyCount "64"]
[EventDate "2022.05.30"]
[EventType "tourn"]
[EventCountry "NOR"]
[SourceTitle "playchess.com"]
[Source "ChessBase"]
[SourceQuality "1"]
[TimeControl "180+2"]

{[%evp 24,64,25,5,100,111,84,0,29,41,22,0,-25,-8,0,-37,-2,-2,-2,-2,0,-23,-22,-58,-50,-49,-14,-17,-2,-7,5,14,44,43,41,46,44,-366,-357,-761,-743,-1812,-1742]} 1. d4 {[%emt 0:00:02] Ftacnik,L} Nf6 {[%emt 0:00:02]} 2. c4 {[%emt 0:00:01]} g6 {[%emt 0:00:00]} 3. Nc3 {[%emt 0:00:03]} d5 {[%emt 0:00:02]} 4. Nf3 {[%emt 0:00:03]} Bg7 {[%emt 0:00:01]} 5. Qb3 {[%emt 0:00:06]} dxc4 {[%emt 0:00:01]} 6. Qxc4 {[%emt 0:00:02]} O-O {[%emt 0:00:02]} 7. e4 {[%emt 0:00:03][%cal Be2e4,Be4e5][%mdl 32]} a6 {[%emt 0:00:01]} 8. e5 {[%emt 0:00:11]} b5 {[%emt 0:00:02]} 9. Qb3 {[%emt 0:00:01]} Nfd7 {[%emt 0:00:01]} 10. Be3 {[%emt 0:00:12]} c5 {[%emt 0:00:08][%cal Bc7c5,Bc5c4][%mdl 32]} 11. e6 {[%emt 0:00:07]} c4 {[%emt 0:00:04] is the legacy move (11...cxd4).} 12. exf7+ {[%emt 0:00:02]} Rxf7 {[%emt 0:00:02]} 13. Qd1 $1 {[%emt 0:00:02] [#]} Nc6 $5 $146 {[%emt 0:00:12][%mdl 8] [#] An interesting novelty. D97: Grünfeld: Russian System: 7 e4, replies other than 7...Bg4.} (13... Nb6 $11 {remains equal.}) ({Predecessor:} 13... Nb6 14. Ne5 Rf8 15. a4 b4 16. a5 bxc3 17. axb6 cxb2 18. Bxc4+ Kh8 19. Rb1 Qxb6 20. Qd2 Nd7 21. Rxb2 Nxe5 22. Rxb6 Nxc4 {1-0 (41) Karpov,A (2770)-Kamsky,G (2735) Elista 1996 CBM 054 [Ftacnik,L]}) 14. Ng5 $1 $16 {[%emt 0:00:15]} Rf6 {[%emt 0:00:08] [#]} 15. Be2 {[%emt 0:00:05]} (15. d5 $1 $16 {[%cal Rd5c6]}) 15... Nb6 {[%emt 0:00:27] The position is equal.} 16. O-O {[%emt 0:00:25]} Rd6 {[%emt 0:00:19]} 17. Nge4 {[%emt 0:00:18]} (17. Bf3 {is more appropriate.}) 17... Rxd4 $11 {[%emt 0:00:04]} 18. Bxd4 {[%emt 0:00:03]} Nxd4 {[%emt 0:00:02]} 19. Bg4 {[%emt 0:00:08]} b4 {[%emt 0:00:17]} 20. Bxc8 {[%emt 0:00:04]} Rxc8 {[%emt 0:00:03]} 21. Ne2 {[%emt 0:00:02]} Nb5 {[%emt 0:00:25] Threatens to win with ...Qxd1.} 22. Qc2 {[%emt 0:00:10]} Qd3 {[%emt 0:00:04]} 23. Rac1 {[%emt 0:00:43]} Qxc2 {[%emt 0:00:33]} ({Don't do} 23... Bxb2 24. Qxd3 cxd3 25. Rxc8+ Nxc8 26. Nf4 $16) 24. Rxc2 {[%emt 0:00:02]} a5 {[%emt 0:00:01]} 25. Rd1 {[%emt 0:00:18]} a4 {[%emt 0:00:03]} 26. Rcd2 {[%emt 0:00:03] Rd8+ is the strong threat.} h6 {[%emt 0:00:26]} (26... Kf7 {keeps more tension.} 27. Ng5+ Ke8 28. Ne6 Bf6) 27. Rd8+ {[%emt 0:00:03]} Kf7 $1 {[%emt 0:00:01] White must now prevent ...Rxd8.} 28. Rxc8 {[%emt 0:00:06]} Nxc8 {[%emt 0:00:01]} 29. Rd8 {[%emt 0:00:13]} Nca7 {[%emt 0:00:11]} 30. Rb8 $2 {[%emt 0:00:05][%mdl 8192]} (30. Nc5 $14 {keeps the upper hand.}) 30... Bxb2 $19 {[%emt 0:00:07]} 31. Nc5 $2 {[%emt 0:00:02]} (31. Rb6 b3 32. axb3 axb3 33. Nd2) 31... a3 {[%emt 0:00:05][%cal Ob4b3] And now ...b3! would win.} 32. Rb7 {[%emt 0:00:03]} b3 {[%emt 0:00:01] Weighted Error Value: White=0.91/Black=0.15 (very precise)} 0-1

[Event "10th Norway Chess Blitz 2022"]
[Site "Stavanger"]
[Date "2022.05.30"]
[Round "8.5"]
[White "Anand, Viswanathan"]
[Black "Mamedyarov, Shakhriyar"]
[Result "1/2-1/2"]
[ECO "C83"]
[WhiteElo "2751"]
[BlackElo "2770"]
[Annotator "TA"]
[PlyCount "133"]
[EventDate "2022.05.30"]
[EventType "tourn"]
[EventCountry "NOR"]
[SourceTitle "playchess.com"]
[Source "ChessBase"]
[SourceQuality "1"]
[TimeControl "180+2"]

{[%evp 21,133,34,31,29,20,20,18,22,21,18,18,21,12,7,7,14,11,14,16,12,12,8,14,12,11,1,1,0,0,8,8,15,8,7,8,0,0,-6,-4,-12,-10,-13,-10,-12,0,-13,-13,-86,-93,-91,-25,-14,0,0,0,0,0,0,0,-47,-47,-47,-66,-91,-91,-136,-126,-108,-83,-591,-591,-584,-584,-840,-825,-745,-679,-564,-462,-412,-217,-217,-220,-213,-204,-204,-8,-138,-8,-109,0,-8,-8,-8,0,-8,-8,-8,-8,-8,0,0,0,0,0,0,0,0,0,0,0,0,0,0]} 1. e4 {[%emt 0:00:01]} e5 {[%emt 0:00:00]} 2. Nf3 {[%emt 0:00:01]} Nc6 {[%emt 0:00:01]} 3. Bb5 {[%emt 0:00:01]} a6 {[%emt 0:00:01]} 4. Ba4 {[%emt 0:00:01]} Nf6 {[%emt 0:00:00]} 5. O-O {[%emt 0:00:02]} Nxe4 {[%emt 0:00:01]} 6. d4 {[%emt 0:00:00]} b5 {[%emt 0:00:01]} 7. Bb3 {[%emt 0:00:01]} d5 {[%emt 0:00:01][%cal Bd7d5,Bd5d4,Bd4d3,Bd3c2][%mdl 32]} 8. dxe5 {[%emt 0:00:02]} Be6 {[%emt 0:00:01]} 9. Nbd2 {[%emt 0:00:02][%cal Bb1d2,Bd2b3,Bb3c5][%mdl 32]} Nc5 {[%emt 0:00:06]} 10. c3 {[%emt 0:00:01]} Be7 {[%emt 0:00:05]} 11. Bc2 {[%emt 0:00:11]} d4 {[%emt 0:00:01]} 12. Nb3 {[%emt 0:00:03][%cal Rf3d4] C83: Open Ruy Lopez: 9 c3 Be7.} d3 {[%emt 0:00:01]} 13. Nxc5 {[%emt 0:00:05]} (13. Bb1 {feels hotter.} Nxb3 14. axb3 Bf5 15. Be3) 13... dxc2 {[%emt 0:00:03]} 14. Qxd8+ {[%emt 0:00:01]} Rxd8 {[%emt 0:00:02]} ({Don't play} 14... Bxd8 15. Nxe6 fxe6 16. Be3 $16) 15. Nxe6 {[%emt 0:00:03]} fxe6 {[%emt 0:00:01]} 16. Be3 {[%emt 0:00:01]} Rd5 {[%emt 0:00:02]} 17. Rac1 {[%emt 0:00:03]} Nxe5 {[%emt 0:00:01]} 18. Nxe5 {[%emt 0:00:02]} Rxe5 {[%emt 0:00:01]} 19. Rxc2 {[%emt 0:00:08]} (19. c4 Bc5 20. Bxc5 Rxc5 21. Rxc2 Ke7 22. Rfc1 Rd8 23. Kf1 bxc4 24. Rxc4 Rd1+ 25. Rxd1 Rxc4 26. Rd2 e5 27. Ke2 Ke6 28. Ke3 a5 29. b3 {½-½ (29) Anand,V (2803)-Mamedyarov,S (2736) Berlin 2015}) 19... Kf7 {[%emt 0:00:01]} 20. c4 {[%emt 0:00:03]} b4 {[%emt 0:00:02]} 21. Rd1 {[%emt 0:00:05]} Rd8 {[%emt 0:00:05]} 22. Rxd8 Bxd8 $11 {[%emt 0:00:01][%mdl 4096] Endgame KRB-KRB} 23. Kf1 {[%emt 0:00:13]} Bg5 {[%emt 0:00:07]} 24. Bd4 {[%emt 0:00:11]} Ra5 {[%emt 0:00:04]} 25. b3 {[%emt 0:00:02]} Bf6 {[%emt 0:00:07]} 26. Be3 {[%emt 0:00:05]} Bg5 {[%emt 0:00:02]} 27. Ba7 {[%emt 0:00:02]} Ra3 {[%emt 0:00:27] [#]} 28. Bb8 $146 {[%emt 0:00:20]} ({Predecessor:} 28. f4 Be7 29. Be3 Ra5 30. Ke2 Rh5 31. h3 e5 32. Rd2 exf4 33. Bxf4 c6 34. Kf3 Ke6 35. Re2+ Kd7 36. Re5 Rxe5 37. Bxe5 {½-½ (45) Malinovsky,K (2478)-Motuz,K (2359) Slovakia 2019}) 28... Bd8 {[%emt 0:00:07]} 29. Ba7 {[%emt 0:00:21]} a5 {[%emt 0:00:02]} 30. Bc5 {[%emt 0:00:09]} Be7 {[%emt 0:00:09]} 31. Be3 {[%emt 0:00:02] Hoping for Bc1.} a4 {[%emt 0:00:04]} 32. bxa4 {[%emt 0:00:01]} Rxa4 {[%emt 0:00:08]} 33. c5 {[%emt 0:00:04]} e5 {[%emt 0:00:10]} 34. Ke2 {[%emt 0:00:17]} (34. Rc4 $1 $11) 34... Ke6 $17 {[%emt 0:00:01]} 35. Rd2 {[%emt 0:00:01]} Ra5 {[%emt 0:00:07]} (35... e4 $17) 36. Rb2 $1 $11 {[%emt 0:00:13]} Bxc5 {[%emt 0:00:10]} 37. Bxc5 {[%emt 0:00:01]} Rxc5 {[%emt 0:00:00]} 38. Rxb4 {[%emt 0:00:01] KR-KR} Rc2+ {[%emt 0:00:01]} 39. Ke3 {[%emt 0:00:01]} Rxa2 {[%emt 0:00:02]} 40. Rg4 {[%emt 0:00:01]} (40. Rh4 $11 {should be considered.}) 40... Ra3+ {[%emt 0:00:03]} 41. Ke2 {[%emt 0:00:02]} g6 $1 {[%emt 0:00:03]} 42. Rc4 {[%emt 0:00:05]} Kd6 {[%emt 0:00:02]} 43. Rh4 {[%emt 0:00:02]} h5 {[%emt 0:00:02][%cal Bh7h5,Bh5g4][%mdl 32]} 44. Rb4 {[%emt 0:00:08]} Ra6 {[%emt 0:00:12]} 45. g4 $2 {[%emt 0:00:07][%mdl 8192]} (45. Rb7 $17 {lives longer.}) 45... c5 $19 {[%emt 0:00:06]} 46. Rb3 {[%emt 0:00:05]} hxg4 {[%emt 0:00:09]} 47. Rg3 {[%emt 0:00:08]} Ra4 {[%emt 0:00:03]} 48. Rb3 {[%emt 0:00:02]} Kc6 {[%emt 0:00:15]} 49. Rb8 {[%emt 0:00:01]} c4 {[%emt 0:00:15]} 50. Rg8 {[%emt 0:00:01]} Kd5 {[%emt 0:00:13]} (50... Kc5 $142 51. Rxg6 Ra2+ 52. Ke3 Ra3+ 53. Ke2 Kb4 54. Rxg4 Kb3) 51. Rxg6 {[%emt 0:00:02] [#]} c3 $1 {[%emt 0:00:04] White must now prevent ...Rd4.} ({Stronger than} 51... Ra2+ 52. Ke3 $17) 52. Kd3 {[%emt 0:00:01]} Rc4 {[%emt 0:00:02]} 53. Kc2 {[%emt 0:00:02]} Kc5 $2 {[%emt 0:00:19]} ({Black should try} 53... Rf4 $19 {...Kd4 is the strong threat.} 54. Kd3 Rf3+ 55. Kc2 Kd4 56. Rxg4+ e4) 54. Rg5 {[%emt 0:00:01] [#]} (54. Rg7 $11) 54... Kd6 {[%emt 0:00:01]} (54... Kb4 $1 $17 {And now ...Rf4 would win.} 55. Rxe5 Rf4) 55. Rg6+ {[%emt 0:00:03]} (55. h3 $11) 55... Ke7 {[%emt 0:00:01]} (55... Kd5 $17 {With the idea ...Rf4.} 56. Rg8 Rf4 57. Kxc3 Ke4) 56. h3 {[%emt 0:00:06] The position is equal.} gxh3 {[%emt 0:00:06]} 57. Rh6 {[%emt 0:00:00] Prevents Rh4.} Ra4 {[%emt 0:00:09]} 58. Rxh3 {[%emt 0:00:10]} Ra2+ {[%emt 0:00:01]} 59. Kd1 {[%emt 0:00:05]} c2+ {[%emt 0:00:07]} 60. Kc1 {[%emt 0:00:01]} Ke6 {[%emt 0:00:01]} 61. Rc3 {[%emt 0:00:01]} Kf5 {[%emt 0:00:03]} 62. Rxc2 {[%emt 0:00:03]} Rxc2+ 63. Kxc2 {[%emt 0:00:01]} Kf4 {[%emt 0:00:03]} 64. Kd2 {[%emt 0:00:01]} Kf3 {[%emt 0:00:00]} 65. Kd3 {[%emt 0:00:01]} Kxf2 {[%emt 0:00:02] ( -> ...Kf3)} 66. Ke4 {[%emt 0:00:01]} Ke2 {[%emt 0:00:01]} 67. Kxe5 {[%emt 0:00:01] White happily takes the draw.  Weighted Error Value: White=0.35/Black=0.21 (precise)} 1/2-1/2